[Event "SS Manhem Chess Week 2022: IM Tournament"]
[Site "Schackcentrum, Vegagatan 20, Gothenburg, Sweden"]
[Date "2022.08.10"]
[Round "6.5"]
[White "Jacobsen, Mikkel Manosri"]
[Black "Ingebretsen, Jens E"]
[Result "1/2-1/2"]
[TimeControl "90 minutes for 40 moves + 30 minutes for the rest of the game + 30 seconds per move from move one."]
[WhiteTitle "FM"]
[BlackTitle "FM"]
[WhiteFideId "1444514"]
[BlackFideId "1522965"]
[WhiteElo "2320"]
[BlackElo "2325"]

1. c4 {[%clk 01:30:51]} {[%emt 00:00:04]} Nf6 {[%clk 01:30:49]} {[%emt
00:00:17]} 2. Nc3 {[%clk 01:30:19]} {[%emt 00:01:01]} g6 {[%clk 01:31:06]}
{[%emt 00:00:14]} 3. Nf3 {[%clk 01:30:18]} {[%emt 00:00:32]} Bg7 {[%clk
01:31:15]} {[%emt 00:00:21]} 4. d4 {[%clk 01:30:36]} {[%emt 00:00:12]} d6
{[%clk 01:31:26]} {[%emt 00:00:19]} 5. e3 {[%clk 01:30:19]} {[%emt 00:00:48]}
O-O {[%clk 01:30:36]} {[%emt 00:01:19]} 6. Be2 {[%clk 01:30:45]} {[%emt
00:00:04]} c5 {[%clk 01:28:23]} {[%emt 00:02:43]} 7. d5 {[%clk 01:31:09]}
{[%emt 00:00:06]} e6 {[%clk 01:27:12]} {[%emt 00:01:41]} 8. O-O {[%clk
01:31:16]} {[%emt 00:00:22]} exd5 {[%clk 01:27:19]} {[%emt 00:00:23]} 9. cxd5
{[%clk 01:31:43]} {[%emt 00:00:03]} Re8 {[%clk 01:27:30]} {[%emt 00:00:19]} 10.
Nd2 {[%clk 01:32:07]} {[%emt 00:00:07]} Na6 {[%clk 01:23:42]} {[%emt 00:04:18]}
11. e4 {[%clk 01:30:02]} {[%emt 00:02:35]} Rb8 {[%clk 01:22:28]} {[%emt
00:01:45]} 12. f3 {[%clk 01:28:35]} {[%emt 00:01:56]} Nh5 {[%clk 01:09:28]}
{[%emt 00:13:30]} 13. f4 {[%clk 01:24:12]} {[%emt 00:04:53]} Bd4+ {[%clk
01:07:01]} {[%emt 00:02:56]} 14. Kh1 {[%clk 01:24:28]} {[%emt 00:00:14]} Ng7
{[%clk 01:07:26]} {[%emt 00:00:06]} 15. f5 {[%clk 01:21:23]} {[%emt 00:03:35]}
gxf5 {[%clk 01:02:27]} {[%emt 00:05:29]} 16. Bb5 {[%clk 01:13:54]} {[%emt
00:07:59]} Rf8 {[%clk 00:56:26]} {[%emt 00:06:31]} 17. exf5 {[%clk 01:05:28]}
{[%emt 00:08:55]} Bxf5 {[%clk 00:56:11]} {[%emt 00:00:46]} 18. Nde4 {[%clk
01:04:32]} {[%emt 00:01:26]} Nc7 {[%clk 00:48:30]} {[%emt 00:08:11]} 19. Bd3
{[%clk 01:03:55]} {[%emt 00:01:06]} Bg6 {[%clk 00:47:22]} {[%emt 00:01:39]} 20.
Bg5 {[%clk 00:59:37]} {[%emt 00:04:47]} f6 {[%clk 00:44:47]} {[%emt 00:03:06]}
21. Bf4 {[%clk 00:59:59]} {[%emt 00:00:07]} Be5 {[%clk 00:41:50]} {[%emt
00:03:29]} 22. Ng3 {[%clk 00:59:03]} {[%emt 00:01:25]} Qe7 {[%clk 00:34:06]}
{[%emt 00:08:15]} 23. Qc2 {[%clk 00:56:54]} {[%emt 00:02:38]} Bxd3 {[%clk
00:28:55]} {[%emt 00:05:42]} 24. Qxd3 {[%clk 00:57:21]} {[%emt 00:00:02]} b5
{[%clk 00:25:57]} {[%emt 00:03:29]} 25. Bh6 {[%clk 00:55:54]} {[%emt 00:01:56]}
b4 {[%clk 00:18:02]} {[%emt 00:08:26]} 26. Nce4 {[%clk 00:53:53]} {[%emt
00:02:31]} Nce8 {[%clk 00:13:54]} {[%emt 00:04:39]} 27. Nf5 {[%clk 00:52:48]}
{[%emt 00:01:33]} Qd7 {[%clk 00:13:24]} {[%emt 00:01:00]} 28. Qh3 {[%clk
00:52:56]} {[%emt 00:00:22]} Kh8 {[%clk 00:12:23]} {[%emt 00:01:32]} 29. Ng5
{[%clk 00:48:35]} {[%emt 00:04:51]} fxg5 {[%clk 00:11:52]} {[%emt 00:01:01]} 30.
Nxg7 {[%clk 00:48:49]} {[%emt 00:00:15]} Nf6 {[%clk 00:09:35]} {[%emt
00:02:48]} 31. Ne6 {[%clk 00:47:48]} {[%emt 00:01:31]} Rf7 {[%clk 00:08:18]}
{[%emt 00:01:48]} 32. Nxg5 {[%clk 00:46:34]} {[%emt 00:01:43]} Re7 {[%clk
00:07:34]} {[%emt 00:01:14]} 33. Qf3 {[%clk 00:45:55]} {[%emt 00:01:08]} Qg4
{[%clk 00:06:08]} {[%emt 00:01:57]} 34. Rae1 {[%clk 00:41:51]} {[%emt
00:04:34]} Qxf3 {[%clk 00:03:33]} {[%emt 00:03:06]} 35. Nxf3 {[%clk 00:36:15]}
{[%emt 00:06:04]} Rbe8 {[%clk 00:02:56]} {[%emt 00:01:08]} 36. Nxe5 {[%clk
00:34:34]} {[%emt 00:02:11]} Rxe5 {[%clk 00:03:25]} {[%emt 00:00:01]} 37. Rxe5
{[%clk 00:34:57]} {[%emt 00:00:07]} Rxe5 {[%clk 00:03:53]} {[%emt 00:00:02]} 38.
g4 {[%clk 00:35:17]} {[%emt 00:00:09]} Ng8 {[%clk 00:03:46]} {[%emt 00:00:39]}
39. Rf8 {[%clk 00:35:33]} {[%emt 00:00:14]} Rxd5 {[%clk 00:03:06]} {[%emt
00:01:11]} 40. Kg2 {[%clk 00:34:55]} {[%emt 00:01:07]} Rd3 {[%clk 00:00:55]}
{[%emt 00:02:40]} 41. h4 {[%clk 00:34:27]} {[%emt 00:00:58]} c4 {[%clk
00:25:25]} {[%emt 00:06:01]} 42. h5 {[%clk 01:02:13]} {[%emt 00:02:44]} c3
{[%clk 00:17:20]} {[%emt 00:08:35]} 43. bxc3 {[%clk 01:01:49]} {[%emt
00:00:53]} bxc3 {[%clk 00:17:37]} {[%emt 00:00:13]} 44. Rc8 {[%clk 01:01:30]}
{[%emt 00:00:50]} c2 {[%clk 00:05:43]} {[%emt 00:12:25]} 45. Bg5 {[%clk
00:55:45]} {[%emt 00:06:14]} Kg7 {[%clk 00:05:35]} {[%emt 00:00:39]} 46. Rxc2
{[%clk 00:55:40]} {[%emt 00:00:35]} Rd5 {[%clk 00:05:15]} {[%emt 00:00:51]} 47.
Rc7+ {[%clk 00:54:12]} {[%emt 00:01:57]} Kf8 {[%clk 00:05:44]} {[%emt
00:00:01]} 48. Bf4 {[%clk 00:54:09]} {[%emt 00:00:33]} Nf6 {[%clk 00:04:58]}
{[%emt 00:01:17]} 49. Rxa7 {[%clk 00:51:54]} {[%emt 00:02:45]} Nxg4 {[%clk
00:05:00]} {[%emt 00:00:27]} 50. h6 {[%clk 00:52:12]} {[%emt 00:00:12]} Nf6
{[%clk 00:03:58]} {[%emt 00:01:33]} 51. a4 {[%clk 00:52:25]} {[%emt 00:00:17]}
Rd4 {[%clk 00:02:50]} {[%emt 00:01:38]} 52. Kf3 {[%clk 00:51:53]} {[%emt
00:01:01]} Rd3+ {[%clk 00:02:22]} {[%emt 00:00:59]} 53. Ke2 {[%clk 00:52:20]}
{[%emt 00:00:02]} Rd4 {[%clk 00:02:47]} {[%emt 00:00:05]} 54. Ke3 {[%clk
00:50:28]} {[%emt 00:02:23]} Rd1 {[%clk 00:03:17]} 55. Bg5 {[%clk 00:50:33]}
{[%emt 00:00:23]} Nd5+ {[%clk 00:02:58]} {[%emt 00:00:50]} 56. Ke4 {[%clk
00:50:42]} {[%emt 00:00:21]} Nc3+ {[%clk 00:03:16]} {[%emt 00:00:12]} 57. Kf5
{[%clk 00:50:59]} {[%emt 00:00:12]} Rd5+ {[%clk 00:03:27]} {[%emt 00:00:20]} 58.
Kg4 {[%clk 00:47:22]} {[%emt 00:04:08]} Rd4+ {[%clk 00:03:57]} 59. Kh5 {[%clk
00:47:38]} {[%emt 00:00:13]} Ne4 {[%clk 00:02:49]} {[%emt 00:01:38]} 60. Bh4
{[%clk 00:45:28]} {[%emt 00:02:39]} Nc5 {[%clk 00:02:14]} {[%emt 00:01:06]} 61.
Rxh7 {[%clk 00:43:46]} {[%emt 00:02:12]} Ne6 {[%clk 00:02:34]} {[%emt
00:00:11]} 62. Ra7 {[%clk 00:43:00]} {[%emt 00:01:16]} Nf4+ {[%clk 00:02:18]}
{[%emt 00:00:47]} 63. Kg5 {[%clk 00:36:41]} {[%emt 00:06:48]} Nh3+ {[%clk
00:02:45]} {[%emt 00:00:04]} 64. Kf6 {[%clk 00:37:05]} {[%emt 00:00:06]} Rf4+
{[%clk 00:02:30]} {[%emt 00:00:45]} 65. Ke6 {[%clk 00:37:33]} {[%emt 00:00:02]}
Re4+ {[%clk 00:02:19]} {[%emt 00:00:41]} 66. Kxd6 {[%clk 00:36:42]} {[%emt
00:01:20]} Rxh4 {[%clk 00:02:22]} {[%emt 00:00:27]} 67. h7 {[%clk 00:37:06]}
{[%emt 00:00:07]} Rh6+ {[%clk 00:02:36]} {[%emt 00:00:15]} 68. Ke5 {[%clk
00:36:56]} {[%emt 00:00:40]} Ng5 {[%clk 00:02:27]} {[%emt 00:00:39]} 69. Ra8+
{[%clk 00:37:14]} {[%emt 00:00:13]} Ke7 {[%clk 00:02:34]} {[%emt 00:00:23]} 70.
a5 {[%clk 00:36:07]} {[%emt 00:01:37]} Nf7+ {[%clk 00:01:50]} {[%emt 00:01:14]}
71. Kd5 {[%clk 00:36:24]} {[%emt 00:00:13]} Rxh7 {[%clk 00:02:02]} {[%emt
00:00:18]} 72. a6 {[%clk 00:36:14]} {[%emt 00:00:40]} Rh5+ {[%clk 00:01:53]}
{[%emt 00:00:38]} 73. Kc6 {[%clk 00:36:24]} {[%emt 00:00:20]} Ne5+ {[%clk
00:01:39]} {[%emt 00:00:45]} 74. Kb7 {[%clk 00:36:06]} {[%emt 00:00:48]} Nd7
{[%clk 00:01:15]} {[%emt 00:00:54]} 75. a7 {[%clk 00:36:14]} {[%emt 00:00:22]}
Rb5+ {[%clk 00:01:25]} {[%emt 00:00:19]} 76. Ka6 {[%clk 00:36:26]} {[%emt
00:00:18]} Rb6+ {[%clk 00:01:32]} {[%emt 00:00:24]} 77. Ka5 {[%clk 00:36:47]}
{[%emt 00:00:09]} Rb7 {[%clk 00:01:59]} {[%emt 00:00:03]} 78. Re8+ {[%clk
00:36:39]} {[%emt 00:00:38]} Kxe8 {[%clk 00:02:24]} {[%emt 00:00:05]} 79. a8=Q+
{[%clk 00:37:03]} {[%emt 00:00:06]} Rb8 {[%clk 00:02:50]} {[%emt 00:00:05]} 80.
Qxb8+ {[%clk 00:36:40]} {[%emt 00:00:53]} Nxb8 {[%clk 00:03:13]} {[%emt
00:00:06]} 1/2-1/2

[Event "SS Manhem Chess Week 2022: IM Tournament"]
[Site "Schackcentrum, Vegagatan 20, Gothenburg, Sweden"]
[Date "2022.08.10"]
[Round "7.1"]
[White "Pantzar, Milton"]
[Black "Mitusov, Semen"]
[Result "1-0"]
[TimeControl "90 minutes for 40 moves + 30 minutes for the rest of the game + 30 seconds per move from move one."]
[WhiteTitle "IM"]
[BlackTitle "FM"]
[WhiteFideId "1721003"]
[BlackFideId "14151049"]
[WhiteElo "2447"]
[BlackElo "2415"]

1. d4 {[%clk 01:30:56]} {[%emt 00:00:03]} d5 {[%clk 01:30:42]} {[%emt
00:00:19]} 2. c4 {[%clk 01:31:16]} {[%emt 00:00:10]} e6 {[%clk 01:30:30]}
{[%emt 00:00:42]} 3. Nf3 {[%clk 01:31:35]} {[%emt 00:00:10]} Nf6 {[%clk
01:30:55]} {[%emt 00:00:06]} 4. g3 {[%clk 01:31:56]} {[%emt 00:00:09]} Be7
{[%clk 01:31:20]} {[%emt 00:00:05]} 5. Bg2 {[%clk 01:32:03]} {[%emt 00:00:23]}
O-O {[%clk 01:31:44]} {[%emt 00:00:06]} 6. O-O {[%clk 01:32:25]} {[%emt
00:00:07]} dxc4 {[%clk 01:32:12]} {[%emt 00:00:04]} 7. Qc2 {[%clk 01:32:28]}
{[%emt 00:00:26]} a6 {[%clk 01:32:36]} {[%emt 00:00:06]} 8. a4 {[%clk
01:32:37]} {[%emt 00:00:21]} Bd7 {[%clk 01:32:12]} {[%emt 00:00:54]} 9. Qxc4
{[%clk 01:32:54]} {[%emt 00:00:13]} Bc6 {[%clk 01:32:38]} {[%emt 00:00:05]} 10.
Bf4 {[%clk 01:32:43]} {[%emt 00:00:40]} Nbd7 {[%clk 01:32:07]} {[%emt
00:01:01]} 11. Nc3 {[%clk 01:28:47]} {[%emt 00:04:27]} Bd6 {[%clk 01:31:31]}
{[%emt 00:01:05]} 12. Bd2 {[%clk 01:26:51]} {[%emt 00:02:26]} e5 {[%clk
01:29:28]} {[%emt 00:02:33]} 13. e4 {[%clk 01:22:55]} {[%emt 00:04:26]} Bxe4
{[%clk 01:13:41]} {[%emt 00:16:17]} 14. Nxe4 {[%clk 01:08:10]} {[%emt
00:15:15]} Nxe4 {[%clk 01:14:05]} {[%emt 00:00:06]} 15. Ba5 {[%clk 01:04:25]}
{[%emt 00:04:15]} exd4 {[%clk 01:07:48]} {[%emt 00:06:47]} 16. Nxd4 {[%clk
01:03:16]} {[%emt 00:01:39]} Qg5 {[%clk 00:58:11]} {[%emt 00:10:06]} 17. Nb3
{[%clk 00:51:29]} {[%emt 00:12:17]} Ndc5 {[%clk 00:48:11]} {[%emt 00:10:31]} 18.
Bxe4 {[%clk 00:35:57]} {[%emt 00:16:01]} Nxb3 {[%clk 00:48:08]} {[%emt
00:00:33]} 19. Qxb3 {[%clk 00:36:20]} {[%emt 00:00:07]} Qxa5 {[%clk 00:48:33]}
{[%emt 00:00:05]} 20. Qd3 {[%clk 00:35:35]} {[%emt 00:01:15]} g6 {[%clk
00:35:27]} {[%emt 00:13:35]} 21. Bxb7 {[%clk 00:35:37]} {[%emt 00:00:28]} Ra7
{[%clk 00:35:20]} {[%emt 00:00:38]} 22. Bd5 {[%clk 00:34:18]} {[%emt 00:01:48]}
Bb4 {[%clk 00:33:04]} {[%emt 00:02:46]} 23. b3 {[%clk 00:31:15]} {[%emt
00:03:33]} c5 {[%clk 00:32:37]} {[%emt 00:00:57]} 24. Rac1 {[%clk 00:26:25]}
{[%emt 00:05:19]} Qb6 {[%clk 00:28:30]} {[%emt 00:04:38]} 25. Qf3 {[%clk
00:25:12]} {[%emt 00:01:42]} Rd8 {[%clk 00:26:14]} {[%emt 00:02:47]} 26. Rfd1
{[%clk 00:21:41]} {[%emt 00:04:01]} Rd6 {[%clk 00:23:48]} {[%emt 00:02:56]} 27.
Bc4 {[%clk 00:19:30]} {[%emt 00:02:40]} Kg7 {[%clk 00:20:32]} {[%emt 00:03:47]}
28. Rxd6 {[%clk 00:19:15]} {[%emt 00:00:45]} Qxd6 {[%clk 00:20:59]} {[%emt
00:00:04]} 29. Rd1 {[%clk 00:19:26]} {[%emt 00:00:18]} Qe7 {[%clk 00:20:47]}
{[%emt 00:00:42]} 30. Rd3 {[%clk 00:18:27]} {[%emt 00:01:29]} a5 {[%clk
00:20:50]} {[%emt 00:00:27]} 31. Qd5 {[%clk 00:16:56]} {[%emt 00:02:00]} Rc7
{[%clk 00:19:59]} {[%emt 00:01:22]} 32. Re3 {[%clk 00:12:59]} {[%emt 00:04:26]}
Qd7 {[%clk 00:19:28]} {[%emt 00:01:01]} 33. Qe5+ {[%clk 00:12:49]} {[%emt
00:00:40]} f6 {[%clk 00:19:17]} {[%emt 00:00:41]} 34. Qe4 {[%clk 00:12:33]}
{[%emt 00:00:46]} Qc6 {[%clk 00:16:35]} {[%emt 00:03:12]} 35. Qxc6 {[%clk
00:09:08]} {[%emt 00:03:56]} Rxc6 {[%clk 00:17:01]} {[%emt 00:00:04]} 36. Re7+
{[%clk 00:09:31]} {[%emt 00:00:06]} Kh8 {[%clk 00:17:27]} {[%emt 00:00:03]} 37.
Rd7 {[%clk 00:09:34]} {[%emt 00:00:28]} Bc3 {[%clk 00:13:28]} {[%emt 00:04:29]}
38. g4 {[%clk 00:05:40]} {[%emt 00:04:24]} h6 {[%clk 00:09:43]} {[%emt
00:04:15]} 39. Kg2 {[%clk 00:04:07]} {[%emt 00:02:03]} f5 {[%clk 00:08:43]}
{[%emt 00:01:29]} 40. gxf5 {[%clk 00:02:37]} {[%emt 00:02:01]} gxf5 {[%clk
00:09:01]} {[%emt 00:00:13]} 41. Kf3 {[%clk 00:28:08]} {[%emt 00:04:58]} Rg6
{[%clk 00:34:31]} {[%emt 00:04:59]} 42. h3 {[%clk 00:25:54]} {[%emt 00:02:44]}
Rg7 {[%clk 00:33:13]} {[%emt 00:01:49]} 43. Rd5 {[%clk 00:22:42]} {[%emt
00:03:42]} Rc7 {[%clk 00:31:44]} {[%emt 00:01:59]} 44. Rxf5 {[%clk 00:21:50]}
{[%emt 00:01:23]} Kg7 {[%clk 00:32:09]} {[%emt 00:00:05]} 45. Kg4 {[%clk
00:20:47]} {[%emt 00:01:33]} Bd4 {[%clk 00:32:10]} {[%emt 00:00:29]} 46. f4
{[%clk 00:20:13]} {[%emt 00:01:04]} Bf6 {[%clk 00:30:06]} {[%emt 00:02:34]} 47.
Rd5 {[%clk 00:20:18]} {[%emt 00:00:25]} Be7 {[%clk 00:29:46]} {[%emt 00:00:49]}
48. h4 {[%clk 00:19:34]} {[%emt 00:01:15]} Rb7 {[%clk 00:25:57]} {[%emt
00:04:19]} 49. h5 {[%clk 00:19:03]} {[%emt 00:01:00]} Ra7 {[%clk 00:26:24]}
{[%emt 00:00:04]} 50. Re5 {[%clk 00:18:49]} {[%emt 00:00:43]} Rd7 {[%clk
00:26:10]} {[%emt 00:00:44]} 51. Re6 {[%clk 00:18:17]} {[%emt 00:01:03]} Bf6
{[%clk 00:25:32]} {[%emt 00:01:08]} 52. Kf5 {[%clk 00:16:53]} {[%emt 00:01:54]}
Rf7 {[%clk 00:25:43]} {[%emt 00:00:19]} 53. Ra6 {[%clk 00:15:48]} {[%emt
00:01:35]} Rf8 {[%clk 00:26:10]} {[%emt 00:00:03]} 54. Ra7+ {[%clk 00:15:50]}
{[%emt 00:00:28]} Kh8 {[%clk 00:26:36]} {[%emt 00:00:03]} 55. Kg6 {[%emt
00:03:10]} Bg7 {[%clk 00:26:31]} 56. Bf7 {[%clk 00:13:57]} {[%emt 00:00:18]}
Bc3 {[%clk 00:25:19]} {[%emt 00:01:42]} 57. Kxh6 {[%clk 00:13:35]} {[%emt
00:00:52]} Bd2 {[%clk 00:25:23]} {[%emt 00:00:25]} 58. Kg6 {[%clk 00:13:36]}
{[%emt 00:00:30]} Bxf4 {[%clk 00:25:29]} {[%emt 00:00:25]} 59. Bd5 {[%clk
00:13:41]} {[%emt 00:00:25]} 1-0

[Event "SS Manhem Chess Week 2022: IM Tournament"]
[Site "Schackcentrum, Vegagatan 20, Gothenburg, Sweden"]
[Date "2022.08.10"]
[Round "7.2"]
[White "Kucuksari, Kaan"]
[Black "Johnson, Daniel"]
[Result "1-0"]
[TimeControl "90 minutes for 40 moves + 30 minutes for the rest of the game + 30 seconds per move from move one."]
[WhiteTitle "FM"]
[WhiteFideId "6380166"]
[BlackFideId "1721283"]
[WhiteElo "2398"]
[BlackElo "2207"]

1. d4 {[%clk 01:30:46]} {[%emt 00:00:13]} d5 {[%clk 01:30:46]} {[%emt
00:00:08]} 2. Nf3 {[%clk 01:31:12]} {[%emt 00:00:11]} Nf6 {[%clk 01:31:09]}
{[%emt 00:00:07]} 3. e3 {[%clk 01:31:36]} {[%emt 00:00:06]} e6 {[%clk
01:30:39]} {[%emt 00:01:00]} 4. Bd3 {[%clk 01:31:55]} {[%emt 00:00:12]} Nbd7
{[%clk 01:29:25]} {[%emt 00:01:44]} 5. O-O {[%clk 01:31:18]} {[%emt 00:01:07]}
Bd6 {[%clk 01:28:53]} {[%emt 00:01:02]} 6. Nbd2 {[%clk 01:30:57]} {[%emt
00:00:51]} O-O {[%clk 01:26:06]} {[%emt 00:03:16]} 7. Re1 {[%clk 01:30:47]}
{[%emt 00:00:41]} e5 {[%clk 01:12:29]} {[%emt 00:14:06]} 8. e4 {[%clk
01:31:02]} {[%emt 00:00:15]} dxe4 {[%clk 01:12:38]} {[%emt 00:00:21]} 9. Nxe4
{[%clk 01:31:26]} {[%emt 00:00:07]} Nxe4 {[%clk 01:10:08]} {[%emt 00:03:00]} 10.
Rxe4 {[%clk 01:31:47]} {[%emt 00:00:09]} f5 {[%clk 00:54:34]} {[%emt 00:16:04]}
11. Bc4+ {[%clk 01:26:57]} {[%emt 00:05:21]} Kh8 {[%clk 00:54:53]} {[%emt
00:00:11]} 12. Re1 {[%clk 00:46:48]} {[%emt 00:40:39]} Qf6 {[%clk 00:46:01]}
{[%emt 00:09:21]} 13. Bg5 {[%clk 00:41:59]} {[%emt 00:05:19]} Qg6 {[%clk
00:45:54]} {[%emt 00:00:36]} 14. dxe5 {[%clk 00:40:45]} {[%emt 00:01:45]} Nxe5
{[%clk 00:10:38]} {[%emt 00:35:47]} 15. Nxe5 {[%clk 00:37:54]} {[%emt
00:03:21]} Qxg5 {[%clk 00:03:53]} {[%emt 00:07:14]} 16. Qxd6 {[%clk 00:36:38]}
{[%emt 00:01:46]} 1-0

[Event "SS Manhem Chess Week 2022: IM Tournament"]
[Site "Schackcentrum, Vegagatan 20, Gothenburg, Sweden"]
[Date "2022.08.10"]
[Round "7.3"]
[White "Ingebretsen, Jens E"]
[Black "Rydstrom, Tom"]
[Result "1-0"]
[TimeControl "90 minutes for 40 moves + 30 minutes for the rest of the game + 30 seconds per move from move one."]
[WhiteTitle "FM"]
[BlackTitle "FM"]
[WhiteFideId "1522965"]
[BlackFideId "1714830"]
[WhiteElo "2325"]
[BlackElo "2304"]

1. c4 {[%clk 01:29:03]} {[%emt 00:01:56]} e5 {[%clk 01:30:52]} {[%emt
00:00:08]} 2. Nc3 {[%clk 01:29:21]} {[%emt 00:00:13]} Nc6 {[%clk 01:31:15]}
{[%emt 00:00:07]} 3. Nf3 {[%clk 01:29:41]} {[%emt 00:00:10]} Bb4 {[%clk
01:29:01]} {[%emt 00:02:44]} 4. g3 {[%clk 01:29:44]} {[%emt 00:00:26]} d6
{[%clk 01:29:11]} {[%emt 00:00:19]} 5. Bg2 {[%clk 01:29:26]} {[%emt 00:00:49]}
f5 {[%clk 01:29:22]} {[%emt 00:00:19]} 6. Nd5 {[%clk 01:28:15]} {[%emt
00:01:41]} a5 {[%clk 01:29:13]} {[%emt 00:00:39]} 7. O-O {[%clk 01:27:32]}
{[%emt 00:01:13]} Nf6 {[%clk 01:29:38]} {[%emt 00:00:06]} 8. d4 {[%clk
01:24:53]} {[%emt 00:03:08]} Nxd5 {[%clk 01:16:43]} {[%emt 00:13:25]} 9. cxd5
{[%clk 01:24:36]} {[%emt 00:00:47]} Nxd4 {[%clk 01:17:10]} {[%emt 00:00:04]} 10.
Nxd4 {[%clk 01:23:27]} {[%emt 00:01:39]} exd4 {[%clk 01:17:35]} {[%emt
00:00:04]} 11. Qxd4 {[%clk 01:23:40]} {[%emt 00:00:18]} O-O {[%clk 01:17:50]}
{[%emt 00:00:15]} 12. Qd3 {[%clk 01:19:50]} {[%emt 00:04:20]} Bd7 {[%clk
01:13:48]} {[%emt 00:04:32]} 13. Be3 {[%clk 01:18:44]} {[%emt 00:01:35]} b6
{[%clk 01:06:59]} {[%emt 00:07:19]} 14. Rfc1 {[%clk 01:08:46]} {[%emt
00:10:28]} Bc5 {[%clk 01:06:46]} {[%emt 00:00:43]} 15. Bd2 {[%clk 01:09:03]}
{[%emt 00:00:13]} Qe8 {[%clk 01:06:27]} {[%emt 00:00:50]} 16. e3 {[%clk
01:09:12]} {[%emt 00:00:20]} Qh5 {[%clk 00:52:27]} {[%emt 00:14:31]} 17. b3
{[%clk 01:05:44]} {[%emt 00:03:58]} f4 {[%clk 00:33:50]} {[%emt 00:19:06]} 18.
exf4 {[%clk 01:03:15]} {[%emt 00:03:00]} Bf5 {[%clk 00:29:09]} {[%emt
00:05:11]} 19. Qc4 {[%clk 00:54:07]} {[%emt 00:09:37]} Qg6 {[%clk 00:28:11]}
{[%emt 00:01:28]} 20. a3 {[%clk 00:52:56]} {[%emt 00:01:42]} Bd3 {[%clk
00:19:44]} {[%emt 00:08:56]} 21. Qc3 {[%clk 00:53:05]} {[%emt 00:00:21]} Rfe8
{[%clk 00:15:52]} {[%emt 00:04:22]} 22. b4 {[%clk 00:38:30]} {[%emt 00:15:06]}
Bxf2+ {[%clk 00:16:06]} {[%emt 00:00:15]} 23. Kxf2 {[%clk 00:38:55]} {[%emt
00:00:05]} Re2+ {[%clk 00:16:33]} {[%emt 00:00:03]} 24. Kg1 {[%clk 00:39:20]}
{[%emt 00:00:06]} Be4 {[%clk 00:16:54]} {[%emt 00:00:10]} 25. Bf1 {[%clk
00:39:24]} {[%emt 00:00:27]} Qh5 {[%clk 00:06:44]} {[%emt 00:10:38]} 26. h3
{[%clk 00:37:53]} {[%emt 00:02:01]} Bxd5 {[%clk 00:05:20]} {[%emt 00:01:54]} 27.
g4 {[%clk 00:35:04]} {[%emt 00:03:19]} Qe8 {[%clk 00:05:49]} {[%emt 00:00:02]}
28. Qd3 {[%clk 00:33:57]} {[%emt 00:01:37]} Qe4 {[%clk 00:05:57]} {[%emt
00:00:21]} 29. Qxe4 {[%clk 00:30:55]} {[%emt 00:03:33]} Rxe4 {[%clk 00:06:25]}
{[%emt 00:00:01]} 30. Rxc7 {[%clk 00:30:17]} {[%emt 00:01:08]} axb4 {[%clk
00:06:49]} {[%emt 00:00:07]} 31. Bg2 {[%clk 00:30:22]} {[%emt 00:00:25]} Rd4
{[%clk 00:07:02]} {[%emt 00:00:17]} 32. Bxd5+ {[%clk 00:30:40]} {[%emt
00:00:12]} Rxd5 {[%clk 00:07:31]} 33. Bxb4 {[%clk 00:31:02]} {[%emt 00:00:08]}
1-0